Cogmind - Beta 9 @@@ ROGUE MODE // 2019.10.22 @ 17:12:43 Player: yngwi Result: Destroyed by 8R-AWN with 8R-AWN's Boregun Performance ------------- Evolutions (0) 0 Regions Visited (1) 200 Robots Destroyed (4) 20 Value Destroyed (107) 107 Prototype IDs (0) 0 Alien Tech Used (0) 0 Bonus (-33) -33 TOTAL SCORE: 294 Bonus ------- Friendly Fire -33 Cogmind --------- Core Integrity 0/250 Matter 300/300 Energy 100/100 System Corruption 0% Temperature Cool (0) Location -10/Materials Parts ------- Power (1) Propulsion (2) Utility (2) Weapon (2) Inventory (4) Light Assault Rifle Peak State ------------ Power Light Ion Engine Propulsion Wheel Wheel Utility Heat Sink Weapon Medium Laser Assault Rifle Inventory Light Assault Rifle [Rating: 6] Favorites ----------- Power Light Ion Engine Engine Light Ion Engine Propulsion Wheel Wheel Wheel Utility Heat Sink Device Heat Sink Weapon Medium Laser Energy Gun Medium Laser Ballistic Gun Assault Rifle Build | -11 -10 ------- Run | Scr Mat Slots Evolved . | . . Power . | . . Propulsion . | . . Utility . | . . Weapon . | . . Parts Attached 6 | 6 . Power 1 | 1 . Engine 1 | 1 . Core . | . . Reactor . | . . Propulsion 2 | 2 . Treads . | . . Leg . | . . Wheel 2 | 2 . Hover . | . . Flight . | . . Utility 1 | 1 . Device 1 | 1 . Storage . | . . Processor . | . . Hackware . | . . Protection . | . . Artifact . | . . Weapon 2 | 2 . Energy Gun 1 | 1 . Energy Cannon . | . . Ballistic Gun 1 | 1 . Ballistic Cannon . | . . Launcher . | . . Special Weapon . | . . Impact Weapon . | . . Slashing Weapon . | . . Piercing Weapon . | . . Special Melee Weapon . | . . Unidentified Prototypes . | . . Parts Lost 6 | . 6 Power 1 | . 1 Propulsion 2 | . 2 Utility 1 | . 1 Weapon 2 | . 2 Highest Loss Streak 5 | . 5 Average Slot Usage (%) 62 | . 62 Engine 10 | . 10 Wheel 23 | . 23 Device 10 | . 10 Energy Gun 8 | . 8 Ballistic Gun 8 | . 8 Naked Turns 13 | . 13 Heaviest Build 8 | 8 8 Greatest Support 20 | 20 20 Greatest Overweight (x) . | . . Average Overweight (x) . | . . Largest Inventory Capacity 4 | 4 4 Average Capacity 4 | 4 4 Most Carried 3 | 3 1 Average Carried 1 | 1 1 Final Capacity 4 | . 4 Final Carried 1 | . 1 Class Distribution -------------------- 100% | Mutant Dominant Class ---------------- Mutant | -10/Materials Resources | -11 -10 ----------- Run | Scr Mat Matter Collected 296 | 259 37 Remotely . | . . Salvage Created 125 | 37 88 Parts 14 | 2 12 Haulers Intercepted . | . . Recyclers Shooed . | . . Parts Field Recycled . | . . Retrieved Matter . | . . Parts Self-Destructed . | . . Prevented . | . . Kills | -11 -10 ------- Run | Scr Mat Combat Hostiles Destroyed 3 | 1 2 Guns 3 | 1 2 Classes Destroyed 2 | 1 1 Builder 1 | . 1 Grunt 3 | 1 2 Best Kill Streak 2 | 1 2 Combat Bots Only 2 | 1 2 Max Kills in Single Turn 1 | 1 1 Gunslinging . | . . Exploded . | . . Melee . | . . Uniques/NPCs Destroyed . | . . Combat | -11 -10 -------- Run | Scr Mat Damage Taken 573 | 30 543 Core 258 | 10 248 Absorbed by Shields . | . . Core Remaining (%) 96 | 96 . Volleys Fired 18 | 3 15 Largest 2 | 2 2 Hottest 70 | 70 70 Shots Fired 36 | 6 30 Gun 36 | 6 30 Cannon . | . . Launcher . | . . Special . | . . Kinetic 18 | 3 15 Thermal 18 | 3 15 Explosive . | . . Electromagnetic . | . . Robot Hit Streak 6 | 3 6 Robot Miss Streak 4 | 2 4 Penetration Max . | . . Secondary Targets . | . . Shots Hit Robots 23 | 4 19 Core Hits 9 | 2 7 Critical Hits . | . . Critical Kills . | . . Critical Parts Destroyed . | . . Melee Attacks . | . . Impact . | . . Slashing . | . . Piercing . | . . Sneak Attacks . | . . Combat Hostiles . | . . Follow-up Attacks . | . . Damage Inflicted 273 | 51 222 Guns 273 | 51 222 Cannons . | . . Explosions . | . . Melee . | . . Ramming . | . . Kinetic 134 | 26 108 Thermal 139 | 25 114 Explosive . | . . Electromagnetic . | . . Impact . | . . Slashing . | . . Piercing . | . . Highest Corruption . | . . Average Corruption . | . . Corruption Purged . | . . Overload Shots . | . . Overflow Damage . | . . Projectiles . | . . Explosions . | . . Melee . | . . Knockbacks . | . . Impact . | . . Kinetic . | . . Secondary . | . . Self-Inflicted Damage . | . . Shots . | . . Rammed . | . . Targets Rammed . | . . Kicked . | . . Crushed . | . . Highest Temperature 45 | 45 2 Average Temperature 18 | 24 2 Received Heat Transfer 108 | 18 90 Siege Activations . | . . Robots Corrupted . | . . Combat Hostiles . | . . Parts Fried . | . . Impact Corruptions . | . . Robots Melted . | . . Combat Hostiles . | . . Parts Melted . | . . Heat Transferred 407 | 74 333 Parts Sabotaged . | . . Parts Stolen . | . . Parts Stripped . | . . Power Chain Reactions . | . . Missiles Intercepted . | . . Alert | -11 -10 ------- Run | Scr Mat Peak Influence 58 | 20 58 Average Influence 23 | 2 30 Maximum Alert Level . | . . Low Security (%) 100 | . . Level 1 . | . . Level 2 . | . . Level 3 . | . . Level 4 . | . . Level 5 . | . . High Security . | . . Max Security . | . . Squads Dispatched . | . . Investigation . | . . Extermination . | . . Reinforcement . | . . Assault . | . . Garrison . | . . Intercept . | . . Construction Impeded . | . . Haulers Reinforced . | . . Stealth | -11 -10 --------- Run | Scr Mat Distress Signals 1 | . 1 Communications Jammed . | . . Distress Signals . | . . Times Spotted 7 | 1 6 Peak Tracking Total 3 | 1 3 Tactical Retreats . | . . Traps | -11 -10 ------- Run | Scr Mat Traps Triggered . | . . Indirectly . | . . Trap Hack Attempts . | . . Triggered . | . . Disarmed . | . . Reprogrammed . | . . Reused . | . . Traps Extracted . | . . Installed . | . . Triggered . | . . Machines | -11 -10 ---------- Run | Scr Mat Machines Disabled . | . . Max in Single Turn . | . . Machines Sabotaged . | . . Garrisons Compromised . | . . Overloaded Fab Kills . | . . Fab Network Shutdowns . | . . Hacking | -11 -10 --------- Run | Scr Mat Machines Accessed 1 | . 1 Terminals 1 | . 1 Fabricators . | . . Repair Stations . | . . Recycling Units . | . . Scanalyzers . | . . Garrison Access . | . . Total Hacks 1 | . 1 Successful 1 | . 1 Failed . | . . Catastrophic . | . . Database Lockouts . | . . Manual . | . . Terminals 1 | . 1 Fabricators . | . . Repair Stations . | . . Recycling Units . | . . Scanalyzers . | . . Garrison Access . | . . Terminal Hacks 1 | . 1 Emergency Access Points 1 | . 1 Fabricator Hacks . | . . Repair Station Hacks . | . . Recycling Unit Hacks . | . . Scanalyzer . | . . Garrison Access Hacks . | . . Unauthorized Hacks . | . . Terminals . | . . Fabricators . | . . Repair Stations . | . . Recycling Units . | . . Scanalyzers . | . . Garrison Access . | . . Data Cores Recovered . | . . Used . | . . Hacking Detections . | . . Full Trace Events . | . . Feedback Events . | . . Feedback Blocked . | . . Robot Schematics Acquired . | . . Robots Built . | . . Matter . | . . Time . | . . Total Robot Build Rating . | . . Part Schematics Acquired . | . . Parts Built . | . . Matter . | . . Time . | . . Total Part Build Rating . | . . Parts Repaired . | . . Time . | . . Parts Recycled . | . . Recycled Matter . | . . Retrieved Matter . | . . Retrieved Components . | . . Parts Scanalyzed . | . . Part Schematics Acquired . | . . Parts Damaged . | . . Bothacking | -11 -10 ------------ Run | Scr Mat Used RIF Installer . | . . Robots Hacked . | . . Non-combat . | . . Combat . | . . Robot Hacks Applied . | . . Relay Couplers Released . | . . Robots Rewired . | . . Allies Hacked . | . . Hacks Repelled . | . . Allies | -11 -10 -------- Run | Scr Mat Total Allies . | . . Largest Group . | . . Highest-Rated Group . | . . Highest-Rated Ally . | . . Total Orders . | . . Ally Attacks . | . . Total Damage . | . . Kills . | . . Allies Corrupted . | . . Allies Melted . | . . Intel | -11 -10 ------- Run | Scr Mat Robot Analysis Total . | . . Derelict Logs Recovered . | . . Drone Launches . | . . Drone Recoveries . | . . Exploration | -11 -10 ------------- Run | Scr Mat Turns Passed 374 | 102 272 Spaces Moved 264 | 122 142 Core 58 | 58 . Treads . | . . Legs . | . . Wheels 206 | 64 142 Hover . | . . Flight . | . . Fastest Speed 50 | 50 80 Average Speed 73 | 65 80 Slowest Speed 80 | 80 80 Overloaded Moves . | . . Propulsion Burnouts . | . . Robots Hopped . | . . Cave-ins Triggered . | . . Exploration Rate (%) 14 | 6 23 Regions Visited 1 Branch Regions . Pre-discovered Areas . | . . Known Exits Taken . | . . Unknown Exits Taken 1 | 1 . Scrap Searched . | . . Spaces Dug . | . . Terrain Destroyed . | . . Melee . | . . Projectile . | . . AOE . | . . Actions | -11 -10 --------- Run | Scr Mat Total 408 | 137 271 Wait 114 | . 114 Move 263 | 121 142 Hop . | . . Pick Up 7 | 7 . Fast Attach . | . . Attach 6 | 6 . Detach . | . . Swap . | . . Drop . | . . Fire 18 | 3 15 Melee . | . . Ram . | . . Kick . | . . Crush . | . . Escape Stasis . | . . Rewire . | . . Trap . | . . Miscellaneous . | . . Route ------- -11/Scrapyard -10/Materials (discovered 2 exits: [*Mat] / [*Min]) History --------- Turn | Location | Event 2 | -11/Scrapyard | Met Revision 17 73 | -11/Scrapyard | Discovered new exit (range 8) 103 | -11/Scrapyard | Entered Materials 191 | -10/Materials | Discovered new exit (range 9) 203 | -10/Materials | Met 8R-AWN 252 | -10/Materials | Discovered new exit (range 10) 260 | -10/Materials | Attacked by 8R-AWN 310 | -10/Materials | Core integrity fell below 50% 313 | -10/Materials | Build established: Mutant 323 | -10/Materials | Core integrity fell below 20% 336 | -10/Materials | Lost 5 parts (1p1n1u2w) 375 | -10/Materials | Destroyed by 8R-AWN with 8R-AWN's Boregun Last Messages --------------- R-06 Scavenger collects Sml. Laser. R-06 Scavenger collects Ion Engine. HV Slug penetrates R-06 Scavenger. R-06 Scavenger suffers critical hit. HV Slug penetrates Wall. HV Slug penetrates R-06 Scavenger. R-06 Scavenger destroyed. HV Slug penetrates Wall. HV Slug penetrates R-06 Scavenger. R-06 Scavenger suffers critical hit. R-06 Scavenger destroyed. Penetrated by HV Slug. Wheel destroyed. HV Slug penetrates Door. Penetrated by HV Slug. HV Slug penetrates Wall. Penetrated by HV Slug. HV Slug penetrates Wall. Penetrated by HV Slug. [Achievement: First Step to Greatness] Map ----- +----------------------------------------------------+ | ??????????????????????????????????????? | | ??????????????????????????????????????? | | ??????????????????????????????????????? | | ??????????????????????????????????????? | | ??????????????????????????????????????? | | ??????????????????????????????????????? | | ??????????????????????????????????????? | | ??????????????????????????????????????? | | ??????????????????????????????????????? | | ??????????????????????????????????????? | | ??????????????????????????????????????? | | ??????????????????????????????????????? | | ??????????????????????????????????????? | | ??????????????????????????????????????? | | ???????????????????# ?????????????????? | | ???????????????????# ?????????????????? | | ????????????? ?????# #????????????????? | | ????????????? ????# ???????????????? | | ???????????? ??+ !???????????????? | | ????????????## ?# =%???????????????? | | ???????????? # # !???????????????? | | ??????????? !# ; ???????????????? | | ??????????? # %???????????????? | | ?????????? # ; % #########*##???? | | ?????????????# ; g *=%%=!#???? | | ???????????????????# @ %!%[< #???? | | ? ?????????????????# *=[*= #???? | | ? ?????????????????###; ;#;#;####???? | | ? ???????????????????## # ?????? | | ? ????????????????????# # """ !!! ?? | | # ????????????????????; #? """ !!! #? | | # ???????????????????##u # """ !!!??? | | # ????????????????????# # ?? ??? | | # #???????#???????????# # = ?????? | | # #?????? +???????????# ##??###?????? | | # #????? #???????????#== ##??????????? | | # #???? #??????????##%* ##??????????? | | # ##### ############!|! #??????????? | | # #??????????? | | # = +??????????? | | # % !% #??????????? | | # #####+###+#####+## #??????????? | | # # = ### ##??????????? | | + "" # """% #?# ##??????????? | | ### T" # """ #?# #??????????? | | #?# "" # """ #?# #??????????? | | #?# # ### ##??????????? | | #?# + """ ## #??????????? | | #?######## """ # #?????????? | | ###????????# """ # #?????????? | +----------------------------------------------------+ Best States ------------- Heat Dissipation 35 Energy Generation 10 Energy Capacity 125 Matter Stores 300 Matter Capacity 300 Sight Range 16 Terrain Scan Density 10 Evasion (%) 50 Item Schematics ----------------- None Robot Schematics ------------------ None Fabricated ------------ Nothing Alien Tech Used ----------------- None Achievements -------------- First Step to Greatness Challenges ------------ None Game ------ Seed MeleeMakeshiftBay Manual? 0 Play Time 00:09:51 Cumulative 0.2 hours Start 2019.10.22 @ 17:03:46 End 2019.10.22 @ 17:12:43 Sessions 1 Manual Loads 0 Difficulty Rogue Special Mode None Game No. 1 Rogue 1 Adventurer 0 Explorer 0 Win Type - Total 0 Types 0/0/0/0/0/0/0 Lore% 0 Gallery% 0 Achievement% 0 Wizard Run 0 Options --------- ASCII 1 Keyboard 1 Movement Arrows Keybinds 0 Fullscreen 2 Font 18/SmallcapsGlow Map View 76x50 Tactical HUD 0 Map Filters NONE Filters NONE Steam 1 RUN: 9326a6a9-5151-4a04-a515-ef7a0ee8849d